[Event "Titled Tuesday Blitz April 25 Early 2023"]
[White "KRUMMEL2008"]
[Black "Avazkhonov, Alikhon"]
[BlackFideId "14208504"]
[WhiteElo "2635"]
[BlackElo "1739"]
[Result "1-0"]
[Round "06"]
[TimeControl "180+2"]
[Date "2023.04.25"]
[WhiteClock "0:00:03"]
[BlackClock "0:00:01"]

1. e4 {[%clk 0:03:00]}  c5 {[%clk 0:02:48]} 2. Nf3 {[%clk 0:03:00]}  d6 {[%clk 0:02:49]} 3. d4 {[%clk 0:02:58]}  cxd4 {[%clk 0:02:50]} 4. Nxd4 {[%clk 0:02:59]}  Nf6 {[%clk 0:02:50]} 5. Nc3 {[%clk 0:02:59]}  a6 {[%clk 0:02:45]} 6. Bg5 {[%clk 0:02:59]}  e6 {[%clk 0:02:45]} 7. f4 {[%clk 0:02:58]}  h6 {[%clk 0:02:45]} 8. Bh4 {[%clk 0:02:57]}  Be7 {[%clk 0:02:46]} 9. Qf3 {[%clk 0:02:39]}  Nbd7 {[%clk 0:02:46]} 10. O-O-O {[%clk 0:02:32]}  Qc7 {[%clk 0:02:46]} 11. Be2 {[%clk 0:02:15]}  b5 {[%clk 0:02:44]} 12. Bxf6 {[%clk 0:01:21]}  Nxf6 {[%clk 0:02:45]} 13. e5 {[%clk 0:01:21]}  Bb7 {[%clk 0:02:46]} 14. Qg3 {[%clk 0:01:17]}  dxe5 {[%clk 0:02:46]} 15. fxe5 {[%clk 0:01:18]}  Ne4 {[%clk 0:02:47]} 16. Nxe6 {[%clk 0:01:08]}  Qxc3 {[%clk 0:02:46]} 17. Nxg7+ {[%clk 0:01:06]}  Kf8 {[%clk 0:02:47]} 18. Ne6+ {[%clk 0:01:05]}  Ke8 {[%clk 0:02:48]} 19. Qxc3 {[%clk 0:01:01]}  Nxc3 {[%clk 0:02:48]} 20. Nc7+ {[%clk 0:01:02]}  Kf8 {[%clk 0:02:48]} 21. bxc3 {[%clk 0:01:03]}  Rc8 {[%clk 0:02:49]} 22. Nd5 {[%clk 0:00:50]}  Ba3+ {[%clk 0:02:49]} 23. Kb1 {[%clk 0:00:48]}  Bxd5 {[%clk 0:02:50]} 24. Rxd5 {[%clk 0:00:49]}  Rg8 {[%clk 0:02:50]} 25. g3 {[%clk 0:00:26]}  Rxc3 {[%clk 0:02:51]} 26. Rf1 {[%clk 0:00:25]}  Re3 {[%clk 0:02:51]} 27. Bh5 {[%clk 0:00:21]}  Rg7 {[%clk 0:02:51]} 28. Rd7 {[%clk 0:00:17]}  Be7 {[%clk 0:02:23]} 29. Ra7 {[%clk 0:00:16]}  Rxe5 {[%clk 0:00:15]} 30. Ra8+ {[%clk 0:00:15]}  Bd8 {[%clk 0:00:15]} 31. Rxd8+ {[%clk 0:00:16]}  Ke7 {[%clk 0:00:16]} 32. Ra8 {[%clk 0:00:17]}  Rxh5 {[%clk 0:00:16]} 33. Rxa6 {[%clk 0:00:17]}  Rxh2 {[%clk 0:00:16]} 34. Rf3 {[%clk 0:00:11]}  Rg2 {[%clk 0:00:13]} 35. Rb6 {[%clk 0:00:08]}  R2xg3 {[%clk 0:00:13]} 36. Rb7+ {[%clk 0:00:06]}  Ke6 {[%clk 0:00:12]} 37. Rbxf7 {[%clk 0:00:05]}  Rxf7 {[%clk 0:00:05]} 38. Rxg3 {[%clk 0:00:05]}  h5 {[%clk 0:00:05]} 39. Kb2 {[%clk 0:00:05]}  h4 {[%clk 0:00:05]} 40. Rh3 {[%clk 0:00:05]}  Rh7 {[%clk 0:00:05]} 41. Kb3 {[%clk 0:00:05]}  Kf5 {[%clk 0:00:06]} 42. Kb4 {[%clk 0:00:05]}  Kg4 {[%clk 0:00:06]} 43. Rh1 {[%clk 0:00:05]}  Rh5 {[%clk 0:00:05]} 44. a4 {[%clk 0:00:03]}  bxa4 {[%clk 0:00:05]} 45. Kxa4 {[%clk 0:00:04]}  Kg3 {[%clk 0:00:04]} 46. c4 {[%clk 0:00:05]}  h3 {[%clk 0:00:04]} 47. Rc1 {[%clk 0:00:05]}  h2 {[%clk 0:00:04]} 48. c5 {[%clk 0:00:04]}  Rxc5 {[%clk 0:00:04]} 49. Rxc5 {[%clk 0:00:02]}  h1=Q {[%clk 0:00:04]} 50. Kb5 {[%clk 0:00:03]}  Qb1+ {[%clk 0:00:04]} 51. Kc4 {[%clk 0:00:03]}  Kf4 {[%clk 0:00:03]} 52. Kd5 {[%clk 0:00:03]}  Qe4+ {[%clk 0:00:03]} 53. Kd6 {[%clk 0:00:03]}  Qd4+ {[%clk 0:00:03]} 54. Kc6 {[%clk 0:00:04]}  Ke4 {[%clk 0:00:03]} 55. Kb5 {[%clk 0:00:04]}  Qb2+ {[%clk 0:00:02]} 56. Kc6 {[%clk 0:00:04]}  Kd4 {[%clk 0:00:03]} 57. Rd5+ {[%clk 0:00:05]}  Ke4 {[%clk 0:00:02]} 58. Rc5 {[%clk 0:00:05]}  Qf6+ {[%clk 0:00:03]} 59. Kb5 {[%clk 0:00:05]}  Kd4 {[%clk 0:00:03]} 60. Rc4+ {[%clk 0:00:05]}  Kd3 {[%clk 0:00:04]} 61. Rc5 {[%clk 0:00:05]}  Qd8 {[%clk 0:00:04]} 62. Kc6 {[%clk 0:00:04]}  Kd4 {[%clk 0:00:03]} 63. Rb5 {[%clk 0:00:01]}  Qc8+ {[%clk 0:00:03]} 64. Kb6 {[%clk 0:00:01]}  Kc4 {[%clk 0:00:04]} 65. Ka7 {[%clk 0:00:01]}  Qc7+ {[%clk 0:00:02]} 66. Rb7 {[%clk 0:00:01]}  Qa5+ {[%clk 0:00:02]} 67. Kb8 {[%clk 0:00:02]}  Kc5 {[%clk 0:00:02]} 68. Rc7+ {[%clk 0:00:03]}  Kd6 {[%clk 0:00:01]} 69. Rb7 {[%clk 0:00:03]} 1-0


[Site "https://www.chess.com"]

[Event "Titled Tuesday Blitz April 25 Early 2023"]
[White "Koridze, Lile"]
[Black "Akash G"]
[WhiteFideId "13612514"]
[BlackFideId "5040299"]
[WhiteElo "2047"]
[BlackElo "2395"]
[Result "1-0"]
[Round "06"]
[TimeControl "180+2"]
[Date "2023.04.25"]
[WhiteClock "0:01:11"]
[BlackClock "0:00:14"]

1. d4 {[%clk 0:03:00]}  Nf6 {[%clk 0:01:16]} 2. c4 {[%clk 0:02:59]}  g6 {[%clk 0:01:16]} 3. Nc3 {[%clk 0:02:59]}  Bg7 {[%clk 0:01:17]} 4. e4 {[%clk 0:02:59]}  O-O {[%clk 0:01:18]} 5. Nf3 {[%clk 0:02:57]}  d6 {[%clk 0:01:18]} 6. Be2 {[%clk 0:02:58]}  e5 {[%clk 0:01:18]} 7. d5 {[%clk 0:02:55]}  Na6 {[%clk 0:01:18]} 8. Bg5 {[%clk 0:02:52]}  h6 {[%clk 0:01:17]} 9. Bh4 {[%clk 0:02:52]}  Nc5 {[%clk 0:01:16]} 10. Nd2 {[%clk 0:02:52]}  a5 {[%clk 0:01:16]} 11. O-O {[%clk 0:02:51]}  Qe8 {[%clk 0:01:15]} 12. Bg3 {[%clk 0:02:49]}  Bd7 {[%clk 0:01:06]} 13. Qc2 {[%clk 0:02:40]}  Nh7 {[%clk 0:01:00]} 14. Bd3 {[%clk 0:02:38]}  f5 {[%clk 0:00:57]} 15. f4 {[%clk 0:02:34]}  exf4 {[%clk 0:00:56]} 16. Bxf4 {[%clk 0:02:34]}  g5 {[%clk 0:00:54]} 17. Bg3 {[%clk 0:02:33]}  f4 {[%clk 0:00:49]} 18. Bf2 {[%clk 0:02:33]}  Nf6 {[%clk 0:00:49]} 19. e5 {[%clk 0:02:15]}  Ng4 {[%clk 0:00:29]} 20. Bxc5 {[%clk 0:01:57]}  dxc5 {[%clk 0:00:22]} 21. e6 {[%clk 0:01:57]}  Bc8 {[%clk 0:00:22]} 22. Nd1 {[%clk 0:01:46]}  Qe7 {[%clk 0:00:20]} 23. Bf5 {[%clk 0:01:37]}  Ne3 {[%clk 0:00:19]} 24. Nxe3 {[%clk 0:01:37]}  fxe3 {[%clk 0:00:20]} 25. Ne4 {[%clk 0:01:36]}  Bd4 {[%clk 0:00:19]} 26. Kh1 {[%clk 0:01:36]}  Kg7 {[%clk 0:00:20]} 27. Qe2 {[%clk 0:01:33]}  b5 {[%clk 0:00:20]} 28. Qh5 {[%clk 0:01:32]}  Qe8 {[%clk 0:00:18]} 29. Qe2 {[%clk 0:01:21]}  bxc4 {[%clk 0:00:18]} 30. Qxc4 {[%clk 0:01:20]}  Ba6 {[%clk 0:00:18]} 31. Qc2 {[%clk 0:01:18]}  Bxf1 {[%clk 0:00:17]} 32. Rxf1 {[%clk 0:01:19]}  Rb8 {[%clk 0:00:16]} 33. b3 {[%clk 0:01:18]}  a4 {[%clk 0:00:17]} 34. Nxc5 {[%clk 0:01:16]}  axb3 {[%clk 0:00:16]} 35. Nxb3 {[%clk 0:01:14]}  Qb5 {[%clk 0:00:16]} 36. Qxc7+ {[%clk 0:01:11]}  Kf6 {[%clk 0:00:14]} 37. Bd3# {[%clk 0:01:11]} 1-0


[Site "https://www.chess.com"]

[Event "Titled Tuesday Blitz April 25 Early 2023"]
[White "Rangel, Daniel"]
[Black "TartineDeNutella"]
[WhiteFideId "2124475"]
[WhiteElo "2256"]
[BlackElo "2624"]
[Result "0-1"]
[Round "06"]
[TimeControl "180+2"]
[Date "2023.04.25"]
[WhiteClock "0:00:47"]
[BlackClock "0:01:58"]

1. c4 {[%clk 0:02:55]}  e6 {[%clk 0:02:59]} 2. e4 {[%clk 0:02:51]}  d5 {[%clk 0:02:58]} 3. cxd5 {[%clk 0:02:52]}  exd5 {[%clk 0:02:59]} 4. exd5 {[%clk 0:02:53]}  Nf6 {[%clk 0:02:59]} 5. Nc3 {[%clk 0:02:52]}  Bd6 {[%clk 0:02:58]} 6. d4 {[%clk 0:02:52]}  O-O {[%clk 0:02:57]} 7. Bd3 {[%clk 0:02:51]}  h6 {[%clk 0:02:56]} 8. Nge2 {[%clk 0:02:52]}  Nbd7 {[%clk 0:02:56]} 9. O-O {[%clk 0:02:42]}  Nb6 {[%clk 0:02:56]} 10. Nf4 {[%clk 0:02:39]}  Re8 {[%clk 0:02:50]} 11. Bc2 {[%clk 0:02:35]}  Bxf4 {[%clk 0:02:40]} 12. Bxf4 {[%clk 0:02:31]}  Nbxd5 {[%clk 0:02:39]} 13. Be5 {[%clk 0:02:31]}  Bg4 {[%clk 0:02:19]} 14. Qd2 {[%clk 0:02:19]}  Bh5 {[%clk 0:02:14]} 15. Rfe1 {[%clk 0:02:11]}  Qd7 {[%clk 0:02:11]} 16. Rac1 {[%clk 0:02:01]}  c6 {[%clk 0:02:10]} 17. h3 {[%clk 0:01:51]}  Bg6 {[%clk 0:02:07]} 18. Bxg6 {[%clk 0:01:44]}  fxg6 {[%clk 0:02:08]} 19. Rcd1 {[%clk 0:01:02]}  Kh7 {[%clk 0:02:00]} 20. Bxf6 {[%clk 0:00:48]}  Nxf6 {[%clk 0:02:00]} 21. Rxe8 {[%clk 0:00:49]}  Rxe8 {[%clk 0:02:00]} 22. d5 {[%clk 0:00:47]}  cxd5 {[%clk 0:01:57]} 23. Nxd5 {[%clk 0:00:48]}  Nxd5 {[%clk 0:01:57]} 24. Qxd5 {[%clk 0:00:48]}  Re1+ {[%clk 0:01:58]} 25. Kh2 {[%clk 0:00:48]}  Rxd1 {[%clk 0:01:58]} 26. Qxd7 {[%clk 0:00:47]}  Rxd7 {[%clk 0:01:58]} 0-1


[Site "https://www.chess.com"]

[Event "Titled Tuesday Blitz April 25 Early 2023"]
[White "Smiechu"]
[Black "Ibadov, Dashgyn"]
[BlackFideId "24107514"]
[WhiteElo "2423"]
[BlackElo "2208"]
[Result "1-0"]
[Round "06"]
[TimeControl "180+2"]
[Date "2023.04.25"]
[WhiteClock "0:00:08"]
[BlackClock "0:00:01"]

1. e4 {[%clk 0:03:00]}  e6 {[%clk 0:02:58]} 2. d4 {[%clk 0:03:00]}  d5 {[%clk 0:02:59]} 3. Bd3 {[%clk 0:03:00]}  dxe4 {[%clk 0:02:59]} 4. Bxe4 {[%clk 0:03:01]}  Nf6 {[%clk 0:02:59]} 5. Bf3 {[%clk 0:03:02]}  c5 {[%clk 0:03:00]} 6. Ne2 {[%clk 0:03:02]}  Nc6 {[%clk 0:02:59]} 7. Be3 {[%clk 0:03:02]}  e5 {[%clk 0:02:57]} 8. Bxc6+ {[%clk 0:02:56]}  bxc6 {[%clk 0:02:58]} 9. dxe5 {[%clk 0:02:57]}  Qxd1+ {[%clk 0:02:58]} 10. Kxd1 {[%clk 0:02:57]}  Ng4 {[%clk 0:02:59]} 11. Nd2 {[%clk 0:02:47]}  Be7 {[%clk 0:02:44]} 12. Nf3 {[%clk 0:02:40]}  Be6 {[%clk 0:02:31]} 13. h3 {[%clk 0:02:26]}  O-O-O+ {[%clk 0:02:29]} 14. Ke1 {[%clk 0:02:26]}  Nxe3 {[%clk 0:02:27]} 15. fxe3 {[%clk 0:02:26]}  f6 {[%clk 0:02:16]} 16. Nf4 {[%clk 0:02:09]}  Bf5 {[%clk 0:02:16]} 17. Rd1 {[%clk 0:01:55]}  Bxc2 {[%clk 0:02:06]} 18. Rc1 {[%clk 0:01:55]}  Be4 {[%clk 0:02:00]} 19. Ke2 {[%clk 0:01:38]}  g5 {[%clk 0:01:34]} 20. Ne6 {[%clk 0:01:27]}  Rd5 {[%clk 0:01:33]} 21. exf6 {[%clk 0:01:23]}  Bxf6 {[%clk 0:01:34]} 22. Rxc5 {[%clk 0:01:21]}  Rxc5 {[%clk 0:01:10]} 23. Nxc5 {[%clk 0:01:21]}  Bd5 {[%clk 0:01:10]} 24. b3 {[%clk 0:01:18]}  h5 {[%clk 0:01:08]} 25. e4 {[%clk 0:01:10]}  Re8 {[%clk 0:01:03]} 26. Kd3 {[%clk 0:01:04]}  Bf7 {[%clk 0:01:02]} 27. Re1 {[%clk 0:01:03]}  Bg6 {[%clk 0:00:59]} 28. g4 {[%clk 0:00:57]}  Rh8 {[%clk 0:00:53]} 29. Kc4 {[%clk 0:00:53]}  hxg4 {[%clk 0:00:50]} 30. hxg4 {[%clk 0:00:53]}  Bf7+ {[%clk 0:00:38]} 31. Kb4 {[%clk 0:00:53]}  Rh3 {[%clk 0:00:28]} 32. Rf1 {[%clk 0:00:41]}  Be7 {[%clk 0:00:22]} 33. Nxg5 {[%clk 0:00:35]}  Bxg5 {[%clk 0:00:10]} 34. Rxf7 {[%clk 0:00:34]}  Bd2+ {[%clk 0:00:10]} 35. Kc4 {[%clk 0:00:28]}  Rc3+ {[%clk 0:00:07]} 36. Kd4 {[%clk 0:00:28]}  Rg3 {[%clk 0:00:05]} 37. Nd3 {[%clk 0:00:28]}  Rxg4 {[%clk 0:00:04]} 38. Rxa7 {[%clk 0:00:27]}  Rg3 {[%clk 0:00:03]} 39. Rf7 {[%clk 0:00:26]}  Be3+ {[%clk 0:00:04]} 40. Kc4 {[%clk 0:00:26]}  Rg2 {[%clk 0:00:04]} 41. Nb4 {[%clk 0:00:25]}  Bd2 {[%clk 0:00:03]} 42. Nxc6 {[%clk 0:00:24]}  Be3 {[%clk 0:00:03]} 43. Kd3 {[%clk 0:00:22]}  Bb6 {[%clk 0:00:03]} 44. e5 {[%clk 0:00:18]}  Rxa2 {[%clk 0:00:03]} 45. e6 {[%clk 0:00:17]}  Ra1 {[%clk 0:00:02]} 46. Rf8+ {[%clk 0:00:10]}  Kc7 {[%clk 0:00:01]} 47. e7 {[%clk 0:00:11]}  Re1 {[%clk 0:00:02]} 48. e8=Q {[%clk 0:00:10]}  Rxe8 {[%clk 0:00:02]} 49. Rxe8 {[%clk 0:00:11]}  Kxc6 {[%clk 0:00:03]} 50. Kc4 {[%clk 0:00:11]}  Bc7 {[%clk 0:00:03]} 51. Re6+ {[%clk 0:00:11]}  Kb7 {[%clk 0:00:03]} 52. Kb5 {[%clk 0:00:11]}  Bf4 {[%clk 0:00:03]} 53. Re7+ {[%clk 0:00:11]}  Kc8 {[%clk 0:00:03]} 54. Kc6 {[%clk 0:00:11]}  Kd8 {[%clk 0:00:04]} 55. Rh7 {[%clk 0:00:09]}  Bd2 {[%clk 0:00:04]} 56. Rh4 {[%clk 0:00:08]}  Be1 {[%clk 0:00:04]} 57. Re4 {[%clk 0:00:08]}  Bd2 {[%clk 0:00:03]} 58. b4 {[%clk 0:00:08]}  Bc3 {[%clk 0:00:01]} 59. b5 {[%clk 0:00:08]} 1-0


[Site "https://www.chess.com"]

[Event "Titled Tuesday Blitz April 25 Early 2023"]
[White "Koellner, Ruben Gideon"]
[Black "Alexikov, Alexander"]
[WhiteFideId "12993093"]
[BlackFideId "14103958"]
[WhiteElo "2314"]
[BlackElo "2186"]
[Result "1-0"]
[Round "06"]
[TimeControl "180+2"]
[Date "2023.04.25"]
[WhiteClock "0:00:13"]
[BlackClock "0:00:41"]

1. d4 {[%clk 0:03:00]}  Nf6 {[%clk 0:02:59]} 2. Nf3 {[%clk 0:03:00]}  g6 {[%clk 0:02:59]} 3. Nbd2 {[%clk 0:02:59]}  Bg7 {[%clk 0:02:59]} 4. e4 {[%clk 0:02:59]}  d6 {[%clk 0:03:00]} 5. Bc4 {[%clk 0:03:00]}  O-O {[%clk 0:02:59]} 6. O-O {[%clk 0:03:00]}  Nxe4 {[%clk 0:02:56]} 7. Nxe4 {[%clk 0:02:59]}  d5 {[%clk 0:02:57]} 8. Bd3 {[%clk 0:03:00]}  dxe4 {[%clk 0:02:56]} 9. Bxe4 {[%clk 0:03:01]}  Nd7 {[%clk 0:02:56]} 10. c3 {[%clk 0:03:01]}  Nf6 {[%clk 0:02:55]} 11. Bc2 {[%clk 0:03:01]}  c6 {[%clk 0:02:55]} 12. Re1 {[%clk 0:03:02]}  Bg4 {[%clk 0:02:54]} 13. h3 {[%clk 0:03:02]}  Be6 {[%clk 0:02:51]} 14. Qe2 {[%clk 0:03:01]}  Re8 {[%clk 0:02:48]} 15. Ng5 {[%clk 0:02:57]}  Bd7 {[%clk 0:02:44]} 16. Bb3 {[%clk 0:02:56]}  e6 {[%clk 0:02:44]} 17. Nf3 {[%clk 0:02:55]}  Nd5 {[%clk 0:02:39]} 18. Bg5 {[%clk 0:02:51]}  Qc7 {[%clk 0:02:39]} 19. Rad1 {[%clk 0:02:46]}  h6 {[%clk 0:02:37]} 20. Bc1 {[%clk 0:02:46]}  a5 {[%clk 0:02:35]} 21. a4 {[%clk 0:02:44]}  Kh7 {[%clk 0:02:26]} 22. Ne5 {[%clk 0:02:42]}  Rf8 {[%clk 0:02:26]} 23. Bc2 {[%clk 0:02:41]}  Be8 {[%clk 0:02:22]} 24. h4 {[%clk 0:02:40]}  f6 {[%clk 0:02:22]} 25. Nc4 {[%clk 0:02:29]}  Bf7 {[%clk 0:02:14]} 26. h5 {[%clk 0:02:28]}  f5 {[%clk 0:02:06]} 27. hxg6+ {[%clk 0:02:27]}  Kxg6 {[%clk 0:02:06]} 28. Ne5+ {[%clk 0:02:09]}  Bxe5 {[%clk 0:02:05]} 29. dxe5 {[%clk 0:02:10]}  Kh7 {[%clk 0:02:02]} 30. Qd2 {[%clk 0:02:03]}  Rh8 {[%clk 0:01:47]} 31. Qxh6+ {[%clk 0:02:00]}  Kg8 {[%clk 0:01:46]} 32. Qg5+ {[%clk 0:02:00]}  Kf8 {[%clk 0:01:46]} 33. Qg3 {[%clk 0:01:20]}  Rd8 {[%clk 0:01:33]} 34. Bg5 {[%clk 0:01:18]}  Rd7 {[%clk 0:01:33]} 35. Bb1 {[%clk 0:00:57]}  Rg8 {[%clk 0:01:28]} 36. Qh4 {[%clk 0:00:53]}  Bg6 {[%clk 0:01:27]} 37. Bh6+ {[%clk 0:00:50]}  Ke8 {[%clk 0:01:26]} 38. c4 {[%clk 0:00:44]}  Nb4 {[%clk 0:01:25]} 39. Qf6 {[%clk 0:00:35]}  Re7 {[%clk 0:01:15]} 40. Rd6 {[%clk 0:00:33]}  Bf7 {[%clk 0:01:14]} 41. Bg5 {[%clk 0:00:30]}  Rd7 {[%clk 0:01:08]} 42. Red1 {[%clk 0:00:28]}  Rxd6 {[%clk 0:01:08]} 43. Rxd6 {[%clk 0:00:27]}  Rxg5 {[%clk 0:01:07]} 44. Qxg5 {[%clk 0:00:25]}  c5 {[%clk 0:01:07]} 45. Qh6 {[%clk 0:00:14]}  Nc6 {[%clk 0:01:03]} 46. Qh8+ {[%clk 0:00:15]}  Ke7 {[%clk 0:01:03]} 47. Qf6+ {[%clk 0:00:15]}  Ke8 {[%clk 0:01:03]} 48. g4 {[%clk 0:00:14]}  fxg4 {[%clk 0:00:50]} 49. Qh8+ {[%clk 0:00:14]}  Ke7 {[%clk 0:00:49]} 50. Qg7 {[%clk 0:00:15]}  Nd4 {[%clk 0:00:44]} 51. Bg6 {[%clk 0:00:14]}  Ke8 {[%clk 0:00:41]} 52. Qg8+ {[%clk 0:00:13]} 1-0


[Site "https://www.chess.com"]

[Event "Titled Tuesday Blitz April 25 Early 2023"]
[White "BenchGM"]
[Black "Ezat, Mohamed"]
[BlackFideId "10600906"]
[WhiteElo "2398"]
[BlackElo "2386"]
[Result "0-1"]
[Round "06"]
[TimeControl "180+2"]
[Date "2023.04.25"]
[WhiteClock "0:00:54"]
[BlackClock "0:00:03"]

1. d4 {[%clk 0:03:00]}  Nf6 {[%clk 0:02:58]} 2. c4 {[%clk 0:02:59]}  d6 {[%clk 0:02:58]} 3. Nc3 {[%clk 0:02:57]}  g6 {[%clk 0:02:58]} 4. e4 {[%clk 0:02:55]}  Bg7 {[%clk 0:02:59]} 5. h3 {[%clk 0:02:54]}  O-O {[%clk 0:02:59]} 6. Be3 {[%clk 0:02:54]}  e5 {[%clk 0:02:54]} 7. d5 {[%clk 0:02:51]}  a5 {[%clk 0:02:54]} 8. g4 {[%clk 0:02:50]}  Na6 {[%clk 0:02:54]} 9. Nge2 {[%clk 0:02:51]}  Nc5 {[%clk 0:02:54]} 10. Ng3 {[%clk 0:02:51]}  c6 {[%clk 0:02:50]} 11. Be2 {[%clk 0:02:49]}  cxd5 {[%clk 0:02:37]} 12. cxd5 {[%clk 0:02:50]}  Nfd7 {[%clk 0:02:31]} 13. h4 {[%clk 0:02:45]}  a4 {[%clk 0:02:30]} 14. h5 {[%clk 0:02:41]}  Qa5 {[%clk 0:02:30]} 15. Qd2 {[%clk 0:02:40]}  Re8 {[%clk 0:02:06]} 16. Bh6 {[%clk 0:02:34]}  Bh8 {[%clk 0:02:05]} 17. Nf5 {[%clk 0:02:27]}  gxf5 {[%clk 0:01:28]} 18. gxf5 {[%clk 0:02:25]}  Bf6 {[%clk 0:01:19]} 19. Rg1+ {[%clk 0:01:54]}  Kh8 {[%clk 0:01:18]} 20. Bg5 {[%clk 0:01:55]}  Qd8 {[%clk 0:00:52]} 21. O-O-O {[%clk 0:01:53]}  Rg8 {[%clk 0:00:41]} 22. Bh6 {[%clk 0:01:51]}  Nb6 {[%clk 0:00:19]} 23. Qe3 {[%clk 0:01:48]}  Bd7 {[%clk 0:00:18]} 24. Bb5 {[%clk 0:01:44]}  Rc8 {[%clk 0:00:17]} 25. Kb1 {[%clk 0:01:43]}  a3 {[%clk 0:00:17]} 26. b3 {[%clk 0:01:42]}  Nxb3 {[%clk 0:00:15]} 27. axb3 {[%clk 0:01:40]}  Rxc3 {[%clk 0:00:15]} 28. Qxc3 {[%clk 0:01:41]}  Bxb5 {[%clk 0:00:15]} 29. Qb4 {[%clk 0:01:37]}  Bd3+ {[%clk 0:00:11]} 30. Ka2 {[%clk 0:01:36]}  Bc2 {[%clk 0:00:09]} 31. Rc1 {[%clk 0:01:32]}  Bd3 {[%clk 0:00:08]} 32. Qxb6 {[%clk 0:01:12]}  Qxb6 {[%clk 0:00:07]} 33. Rxg8+ {[%clk 0:01:12]}  Kxg8 {[%clk 0:00:07]} 34. Rc8+ {[%clk 0:01:12]}  Bd8 {[%clk 0:00:08]} 35. Bg5 {[%clk 0:01:13]}  Qxf2+ {[%clk 0:00:08]} 36. Kxa3 {[%clk 0:01:13]}  Qa7+ {[%clk 0:00:06]} 37. Kb2 {[%clk 0:01:13]}  Qd4+ {[%clk 0:00:06]} 38. Ka3 {[%clk 0:01:12]}  f6 {[%clk 0:00:07]} 39. Bxf6 {[%clk 0:01:12]}  Kf7 {[%clk 0:00:07]} 40. Bxd8 {[%clk 0:01:12]}  Bxe4 {[%clk 0:00:07]} 41. Rc7+ {[%clk 0:01:10]}  Ke8 {[%clk 0:00:07]} 42. Bg5 {[%clk 0:01:08]}  Bxd5 {[%clk 0:00:07]} 43. Re7+ {[%clk 0:01:04]}  Kf8 {[%clk 0:00:07]} 44. f6 {[%clk 0:01:04]}  Bf7 {[%clk 0:00:07]} 45. Bh6+ {[%clk 0:01:03]}  Kg8 {[%clk 0:00:06]} 46. Rc7 {[%clk 0:01:01]}  Qa1+ {[%clk 0:00:06]} 47. Kb4 {[%clk 0:01:01]}  Qa8 {[%clk 0:00:06]} 48. Kb5 {[%clk 0:00:58]}  Qe8+ {[%clk 0:00:06]} 49. Kb6 {[%clk 0:00:59]}  e4 {[%clk 0:00:06]} 50. Re7 {[%clk 0:00:58]}  Qc6+ {[%clk 0:00:07]} 51. Ka7 {[%clk 0:00:57]}  b5 {[%clk 0:00:07]} 52. Rb7 {[%clk 0:00:56]}  Qe8 {[%clk 0:00:02]} 53. Re7 {[%clk 0:00:56]}  Qc8 {[%clk 0:00:01]} 54. Rxe4 {[%clk 0:00:54]}  Qc5+ {[%clk 0:00:01]} 55. Kb8 {[%clk 0:00:53]}  Qb6+ {[%clk 0:00:02]} 56. Kc8 {[%clk 0:00:53]}  Qc6+ {[%clk 0:00:02]} 57. Kd8 {[%clk 0:00:54]}  Qxe4 {[%clk 0:00:03]} 0-1


[Site "https://www.chess.com"]

[Event "Titled Tuesday Blitz April 25 Early 2023"]
[White "Hoffmann, Asa"]
[Black "Berezin, Viktor"]
[WhiteFideId "2001470"]
[BlackFideId "14107872"]
[WhiteElo "2117"]
[BlackElo "2310"]
[Result "1-0"]
[Round "06"]
[TimeControl "180+2"]
[Date "2023.04.25"]
[WhiteClock "0:00:54"]
[BlackClock "0:00:07"]

1. d4 {[%clk 0:03:00]}  Nf6 {[%clk 0:02:59]} 2. Bg5 {[%clk 0:02:59]}  Ne4 {[%clk 0:02:56]} 3. Bf4 {[%clk 0:02:58]}  d6 {[%clk 0:02:57]} 4. f3 {[%clk 0:02:58]}  Nf6 {[%clk 0:02:57]} 5. e4 {[%clk 0:02:58]}  Nbd7 {[%clk 0:02:57]} 6. Nc3 {[%clk 0:02:57]}  e5 {[%clk 0:02:57]} 7. Be3 {[%clk 0:02:56]}  Be7 {[%clk 0:02:58]} 8. Bc4 {[%clk 0:02:56]}  c6 {[%clk 0:02:58]} 9. Nge2 {[%clk 0:02:55]}  O-O {[%clk 0:02:58]} 10. Qd2 {[%clk 0:02:55]}  b5 {[%clk 0:02:58]} 11. Bb3 {[%clk 0:02:55]}  a5 {[%clk 0:02:55]} 12. a4 {[%clk 0:02:55]}  b4 {[%clk 0:02:56]} 13. Nd1 {[%clk 0:02:54]}  Ba6 {[%clk 0:02:52]} 14. Nf2 {[%clk 0:02:53]}  exd4 {[%clk 0:02:47]} 15. Nxd4 {[%clk 0:02:50]}  Ne5 {[%clk 0:02:46]} 16. Nf5 {[%clk 0:02:30]}  d5 {[%clk 0:02:40]} 17. Qd4 {[%clk 0:02:19]}  Nc4 {[%clk 0:02:21]} 18. Bxc4 {[%clk 0:02:17]}  Bxc4 {[%clk 0:02:19]} 19. Ng4 {[%clk 0:01:58]}  Ne8 {[%clk 0:01:46]} 20. O-O-O {[%clk 0:01:50]}  Bf6 {[%clk 0:01:33]} 21. e5 {[%clk 0:01:47]}  Be7 {[%clk 0:01:26]} 22. h4 {[%clk 0:01:39]}  Nc7 {[%clk 0:01:20]} 23. Nxe7+ {[%clk 0:01:36]}  Qxe7 {[%clk 0:01:19]} 24. Bg5 {[%clk 0:01:35]}  Qd7 {[%clk 0:01:11]} 25. Bf6 {[%clk 0:01:28]}  Ne6 {[%clk 0:01:08]} 26. Qxc4 {[%clk 0:01:26]}  Qb7 {[%clk 0:00:58]} 27. Qd3 {[%clk 0:01:19]}  b3 {[%clk 0:00:49]} 28. c3 {[%clk 0:01:18]}  Qb6 {[%clk 0:00:27]} 29. Qf5 {[%clk 0:01:02]}  d4 {[%clk 0:00:24]} 30. Bxg7 {[%clk 0:00:56]}  Kxg7 {[%clk 0:00:10]} 31. Qf6+ {[%clk 0:00:54]}  Kg8 {[%clk 0:00:07]} 32. Nh6# {[%clk 0:00:54]} 1-0


[Site "https://www.chess.com"]